[Event "Szansa Chess Open 2022"]
[Site "Warsaw"]
[Date "2022.09.18"]
[Round "7"]
[White "Mulawa, Cyprian"]
[Black "Slomczewski, Michal"]
[Result "0-1"]
[ECO "B47"]
[WhiteElo "2149"]
[BlackElo "2108"]
[Annotator "TA"]
[PlyCount "104"]
[EventDate "2022.09.17"]
[EventCountry "POL"]
[SourceTitle "playchess.com"]
[Source "ChessBase"]
[SourceQuality "1"]
[TimeControl "900+10"]

{[%evp 24,104,36,47,60,41,66,69,91,-25,0,0,0,0,193,-34,-24,-68,-41,-30,-24,-87,-79,-76,-23,-109,-110,-171,-164,-170,-158,-373,-344,-422,-412,-595,-591,-917,-899,-1069,-1058,-1088,-1028,-1219,-1206,-1297,-1282,-1230,-1218,-1189,-1175,-1376,-1363,-1356,-1334,-1247,-1306,-1970,-1925,-1855,-1846,-1701,-1717,-29972,-29972,-29976,-29976,-29982,-29983,-29983,-29984,-29984,-29985,-29985,-29986,-29986,-29987,-29987,-29981,-29981,-29982,-29981,-29982]} 1. e4 {[%emt 0:00:03]} c5 {[%emt 0:00:07]} 2. Nf3 {[%emt 0:00:02]} e6 {[%emt 0:00:01]} 3. d4 {[%emt 0:00:02]} cxd4 {[%emt 0:00:01]} 4. Nxd4 {[%emt 0:00:02]} Nc6 {[%emt 0:00:01]} 5. Nc3 {[%emt 0:00:01]} Qc7 {[%emt 0:00:01]} 6. g3 {[%emt 0:00:02]} a6 {[%emt 0:00:14]} 7. Bg2 {[%emt 0:00:21]} Nf6 {[%emt 0:00:19]} 8. O-O {[%emt 0:00:04]} Be7 {[%emt 0:00:30]} 9. Re1 {[%emt 0:00:33]} d6 {[%emt 0:00:38]} 10. Nxc6 {[%emt 0:00:16]} bxc6 {[%emt 0:00:06]} 11. e5 {[%emt 0:00:01]} dxe5 {[%emt 0:00:11]} 12. Rxe5 {[%emt 0:00:01]} O-O {[%emt 0:01:13]} 13. Re1 {[%emt 0:00:44]} e5 {[%emt 0:01:30] B80: Sicilian Scheveningen: 6 g3 and 6 Be3, including English Attack.} 14. Qe2 {[%emt 0:01:11]} Re8 {[%emt 0:00:02]} 15. Bg5 {[%emt 0:01:18]} ({Much weaker is} 15. Qxe5 $6 Bf8 16. Qxe8 (16. Qxc7 {is a self mate.} Rxe1+ 17. Bf1 Bh3 18. Bg5 Rxa1) 16... Nxe8 17. Rxe8 Qb7 $11) 15... h6 {[%emt 0:01:40] [#] White is slightly better.} 16. Qxe5 $146 {[%emt 0:02:42]} (16. Bxf6 $16 Bxf6 17. Qc4) ({Predecessor:} 16. Bxf6 Bxf6 17. Qc4 Re6 18. Rad1 Rb8 19. b3 Qa5 20. Na4 Rb4 21. Qe2 e4 22. Bh3 {½-½ (60) Firat,B (2310)-Managadze,N (2459) Chalkida 2009}) 16... Bd6 {[%emt 0:02:36]} 17. Qxe8+ {[%emt 0:01:15]} Nxe8 {[%emt 0:00:01]} 18. Rxe8+ {[%emt 0:00:01]} Bf8 $2 {[%emt 0:00:00] [#]} (18... Kh7 $11 {and Black has nothing to worry.} 19. Be3 Bb7 20. Be4+ g6 21. Rxa8 Bxa8) 19. Bf4 $2 {[%emt 0:00:35]} ({White must play} 19. Rd1 $1 $18 Bg4 (19... hxg5 20. Rdd8) 20. Rxa8 Bxd1 21. Be3 (21. Nxd1 hxg5 22. Rxa6 Qe5 $11)) 19... Qb7 $36 {[%emt 0:02:17][%mdl 2048] White is under pressure.} 20. Rd1 {[%emt 0:00:33] Black must now prevent Rdd8.} Bg4 {[%emt 0:02:19]} (20... Bf5 $5 {[%cal Ra8e8]} 21. Rxa8 Qxa8 $15) 21. Rxa8 {[%emt 0:00:54]} Qxa8 {[%emt 0:00:02]} 22. Rc1 {[%emt 0:01:09]} (22. Rd4 $11 {remains equal.}) 22... Qb7 {[%emt 0:00:32][%mdl 1024] Black has strong compensation.} 23. b3 {[%emt 0:00:14]} Be6 {[%emt 0:00:54]} (23... Ba3 $17 {aiming for ...Qb4.} 24. Re1 Bb4) 24. a4 {[%emt 0:00:32]} (24. Na4 $11) 24... Qb4 $17 {[%emt 0:00:22]} 25. Bd2 {[%emt 0:01:47]} (25. Ne4 $17) 25... Qd4 $19 {[%emt 0:00:42]} 26. Ne4 {[%emt 0:00:08] [#]} Qb2 $1 {[%emt 0:00:38][%cal Of8b4]} 27. Be3 $2 {[%emt 0:00:59] Now White is beyond hope.} (27. Nc3 $17) 27... Ba3 {[%emt 0:00:51]} 28. h4 {[%emt 0:01:45]} Bd5 {[%emt 0:00:04]} 29. Bf4 {[%emt 0:01:54]} (29. Rd1 {is a better defense.} Qxc2 30. Rd4) 29... f5 {[%emt 0:01:29]} 30. c4 {[%emt 0:00:38]} Bxe4 {[%emt 0:00:12]} 31. Bxe4 {[%emt 0:00:01]} fxe4 {[%emt 0:00:01]} 32. Re1 {[%emt 0:00:01]} Qxb3 {[%emt 0:00:25]} 33. Kh2 {[%emt 0:00:13]} Qxc4 {[%emt 0:00:03]} 34. Rd1 {[%emt 0:00:02]} Qxa4 {[%emt 0:00:24]} 35. Rd8+ {[%emt 0:00:07]} Kf7 {[%emt 0:00:02]} 36. Rd7+ {[%emt 0:00:01]} Kf6 {[%emt 0:00:01]} 37. g4 {[%emt 0:00:09]} c5 {[%emt 0:00:25]} 38. Rd6+ {[%emt 0:00:05]} Ke7 {[%emt 0:00:12] Threatens to win with ...c4.} 39. Rg6 {[%emt 0:00:06]} Kf7 {[%emt 0:00:01]} 40. h5 {[%emt 0:00:02]} Bb2 {[%emt 0:00:18] Strongly threatening ...Qc2.} 41. Rb6 {[%emt 0:00:08]} Bf6 {[%emt 0:00:15]} 42. Rb7+ {[%emt 0:00:13]} Ke6 {[%emt 0:00:01]} 43. Rc7 {[%emt 0:00:16]} Qd4 {[%emt 0:00:21] Black mates.} 44. Kg2 {[%emt 0:00:15]} Be5 {[%emt 0:00:13]} 45. Rc6+ {[%emt 0:00:08]} Kd7 {[%emt 0:00:06]} 46. Bxe5 {[%emt 0:00:12]} Kxc6 {[%emt 0:00:01]} 47. Bxd4 {[%emt 0:00:02]} cxd4 {[%emt 0:00:01] KP-KP} 48. f4 {[%emt 0:00:03]} exf3+ {[%emt 0:00:03]} 49. Kxf3 {[%emt 0:00:02]} a5 {[%emt 0:00:01][%cal Ba6a5,Ba5a4][%mdl 32]} 50. Ke4 {[%emt 0:00:01]} a4 {[%emt 0:00:00]} 51. Kxd4 {[%emt 0:00:01]} Kd6 {[%emt 0:00:07]} 52. Kc4 {[%emt 0:00:01]} Ke5 {[%emt 0:00:00] Weighted Error Value: White=1.00/Black=0.23 (precise)} 0-1

[Event "Szansa Chess Open 2022"]
[Site "Warsaw"]
[Date "2022.09.18"]
[Round "7"]
[White "Derylo, Kamil"]
[Black "Alvarado, Carlos"]
[Result "0-1"]
[ECO "B12"]
[WhiteElo "2143"]
[BlackElo "2108"]
[Annotator "TA"]
[PlyCount "60"]
[EventDate "2022.09.17"]
[EventCountry "POL"]
[SourceTitle "playchess.com"]
[Source "ChessBase"]
[SourceQuality "1"]
[TimeControl "900+10"]

{[%evp 9,60,0,0,-4,-13,-29,-22,-45,-11,-35,-24,-42,-36,-56,0,-53,-66,-89,-64,-91,-85,-108,-51,-146,-112,-120,-106,-135,-127,-133,-94,-95,-99,-134,-133,-158,-159,-233,-173,-248,-238,-237,-198,-227,-189,-177,-138,-438,-322,-1310,-1289,-2127,-1476]} 1. e4 {[%emt 0:00:02]} c6 {[%emt 0:00:01]} 2. d4 {[%emt 0:00:02]} d5 {[%emt 0:00:02]} 3. f3 {[%emt 0:00:01]} e6 {[%emt 0:00:03]} 4. Nc3 {[%emt 0:00:02]} Bb4 {[%emt 0:00:02]} 5. Bd2 {[%emt 0:00:03]} Ne7 {[%emt 0:00:03]} (5... dxe4 6. Nxe4 Be7 7. c3 $14) 6. Nce2 {[%emt 0:00:19] B12: Caro-Kann: Advance Variation.} Ba5 {[%emt 0:00:10]} 7. Ng3 {[%emt 0:00:52]} Nd7 {[%emt 0:00:07] [#]} 8. Bd3 $146 {[%emt 0:00:09] The position is equal.} ({Predecessor:} 8. c3 Bb6 9. Qc2 c5 10. dxc5 Nxc5 11. O-O-O Bd7 12. N1e2 Rc8 13. Kb1 O-O 14. Bg5 {1-0 (35) Filev,G (2360)-Spassov,L (2418) Sofia 2010}) 8... Bb6 {[%emt 0:00:06]} 9. N1e2 {[%emt 0:00:12]} c5 {[%emt 0:00:15][%cal Bc6c5,Bc5d4][%mdl 32] [#] Hoping for ...c4.} 10. c3 {[%emt 0:00:10]} O-O {[%emt 0:03:45]} 11. O-O {[%emt 0:00:03]} e5 {[%emt 0:00:12]} (11... cxd4 $15 12. cxd4 dxe4 13. Bxe4 (13. fxe4 Nc6 $17) 13... f5) 12. Kh1 {[%emt 0:02:48]} (12. exd5 $11 Nxd5 13. c4) 12... exd4 {[%emt 0:00:17]} 13. cxd4 {[%emt 0:00:02]} cxd4 {[%emt 0:00:18]} 14. Bg5 {[%emt 0:01:02]} f6 {[%emt 0:01:08]} 15. Bf4 {[%emt 0:00:33]} Ne5 {[%emt 0:03:35]} (15... dxe4 $17 16. Bc4+ Kh8 17. Nxd4 Ne5 18. Bxe5 fxe5) 16. exd5 {[%emt 0:01:14]} (16. Bxe5 $15 fxe5 17. f4) 16... Nxd3 {[%emt 0:02:12]} ({Weaker is} 16... Qxd5 17. Be4 Qd6 18. a4 $17) 17. Qxd3 {[%emt 0:00:30]} Nxd5 {[%emt 0:00:03]} 18. Bd2 {[%emt 0:00:25] [#]} Ne3 $1 {[%emt 0:00:22]} 19. Rfe1 {[%emt 0:01:06][%cal Oe2d4]} Kh8 {[%emt 0:00:24]} 20. Rac1 {[%emt 0:03:08]} Re8 {[%emt 0:00:33]} 21. Ne4 {[%emt 0:00:18]} Bf5 {[%emt 0:01:30]} 22. N2g3 {[%emt 0:00:28]} Bg6 {[%emt 0:00:05]} 23. b4 {[%emt 0:00:29]} (23. Qa3 $17) 23... Rc8 24. Qb3 {[%emt 0:00:21]} (24. Rxc8 {might work better.} Qxc8 25. Rc1) 24... Rxc1 $19 {[%emt 0:01:01]} 25. Rxc1 {[%emt 0:00:18]} h5 {[%emt 0:00:01][%cal Bh7h5,Bh5h4][%mdl 32]} 26. Nc5 {[%emt 0:00:35]} h4 {[%emt 0:00:06]} 27. Nge4 {[%emt 0:01:13]} Bxc5 {[%emt 0:00:16]} 28. Rxc5 {[%emt 0:00:21][%mdl 8192]} (28. bxc5 $17 Re7 29. h3 (29. Bxe3 dxe3 30. Qxe3 Qe8 $17)) 28... b6 {[%emt 0:00:19]} 29. Rb5 {[%emt 0:00:35]} (29. Rc1 Bxe4 30. fxe4) 29... a6 {[%emt 0:00:06][%cal Ba7a6,Ba6b5][%mdl 32]} 30. Bxe3 {[%emt 0:00:35]} axb5 {Weighted Error Value: White=0.84/Black=0.23 (precise)} 0-1

[Event "Szansa Chess Open 2022"]
[Site "Warsaw"]
[Date "2022.09.18"]
[Round "7"]
[White "Jarocka, Liwia"]
[Black "Czyzak, Blazej"]
[Result "0-1"]
[ECO "D37"]
[WhiteElo "2131"]
[BlackElo "1517"]
[Annotator "TA"]
[PlyCount "92"]
[EventDate "2022.09.17"]
[EventCountry "POL"]
[SourceTitle "playchess.com"]
[Source "ChessBase"]
[SourceQuality "1"]
[TimeControl "900+10"]

{[%evp 13,92,11,5,-4,46,36,44,0,27,24,24,21,20,20,14,-19,0,0,20,0,0,-33,-9,-16,-6,-12,22,18,273,0,0,-19,-31,-26,-22,-149,-146,-183,-184,-179,-147,-195,-182,-260,-267,-326,329,300,396,-164,-146,-261,-237,-547,-328,-318,-244,-243,-119,-119,-110,-651,-651,-645,-645,-972,-933,-1193,-1180,-940,-863,-1182,-1184,-1162,-1128,-29973,-851,-1079,-953,-29989,-29990]} 1. d4 {[%emt 0:00:01]} Nf6 {[%emt 0:00:04]} 2. c4 {[%emt 0:00:01]} e6 {[%emt 0:00:03]} 3. Nf3 {[%emt 0:00:01]} d5 {[%emt 0:00:15]} 4. Nc3 {[%emt 0:00:01]} Be7 {[%emt 0:00:11]} 5. Bf4 {[%emt 0:00:06]} O-O {[%emt 0:00:38]} 6. e3 {[%emt 0:00:15]} b6 {[%emt 0:00:32]} 7. cxd5 {[%emt 0:00:08]} Nxd5 {[%emt 0:00:10]} 8. Bg3 {[%emt 0:00:39] [#] D37: Queen's Gambit Declined: 5 Bf4.} Nf6 $146 {[%emt 0:01:18]} ({Better is} 8... Bb7 $11) ({Predecessor:} 8... c5 9. Bc4 Nxc3 10. bxc3 Bb7 11. O-O Nd7 12. a4 Nf6 13. Qb3 Bd6 14. Bh4 Rc8 15. Rac1 Qc7 16. Bxf6 gxf6 {½-½ (27) Kuzubov,Y (2636)-Fedoseev,V (2664) Douglas 2019}) 9. Bd3 {[%emt 0:00:07]} Bb7 {[%emt 0:00:18]} 10. h3 {[%emt 0:00:53] White is slightly better.} Bd6 {[%emt 0:00:15]} 11. Bh4 {[%emt 0:00:19]} Nbd7 {[%emt 0:00:36]} 12. O-O {[%emt 0:01:50]} c5 {[%emt 0:00:23]} 13. Rc1 {[%emt 0:02:44]} cxd4 {[%emt 0:00:53]} 14. exd4 {[%emt 0:00:13]} (14. Nxd4 {with more complications.} Nc5 15. Bb1 Be7 16. Qc2) 14... Be7 {[%emt 0:01:14]} 15. Bg3 {[%emt 0:00:11]} Nd5 {[%emt 0:00:45]} 16. Nb5 {[%emt 0:00:28]} N7f6 {[%emt 0:00:24]} 17. Re1 {[%emt 0:01:19]} Nb4 {[%emt 0:00:50]} 18. Bb1 {[%emt 0:00:46]} a6 {[%emt 0:01:29]} 19. Nc3 {[%emt 0:02:37]} Bxf3 {[%emt 0:01:44]} 20. Qxf3 {[%emt 0:00:01]} Qxd4 $2 {[%emt 0:00:27][%mdl 8192]} (20... b5 $11 {and Black has nothing to worry.}) 21. Be5 $2 {[%emt 0:00:21]} (21. a3 $18) 21... Qh4 $1 $11 {[%emt 0:00:24]} 22. g3 {[%emt 0:01:58]} Qxh3 {[%emt 0:02:20] And now ...Ng4 would win.} 23. Bxf6 {[%emt 0:01:29]} Bxf6 {[%emt 0:00:02]} (23... gxf6 24. a3 $16) 24. Ne2 {[%emt 0:00:28]} (24. a3 $11 Nd5 25. Nxd5 exd5 26. Red1) 24... Nd5 $17 {[%emt 0:00:31]} (24... Bxb2 25. Rc4 a5 26. Rh4 Qxh4 27. gxh4 $18) 25. Rc4 {[%emt 0:00:43]} Qh6 {[%emt 0:00:42]} (25... Bxb2 26. Rh4 Qxh4 27. gxh4 $18) 26. Kg2 {[%emt 0:00:08] Rh1 is the strong threat.} Qg5 {[%emt 0:01:49]} ({Don't play} 26... Bxb2 27. Rh1 Qxh1+ 28. Kxh1 $18) 27. Rg4 {[%emt 0:00:16]} (27. Nf4 $17) 27... Qe5 {[%emt 0:00:14]} ({Much less strong is} 27... Qh6 28. Rh1 Qxh1+ 29. Kxh1 $18) 28. Re4 {[%emt 0:00:43]} (28. Rd4 $142) 28... Qxb2 $19 {[%emt 0:00:08]} 29. Nf4 {[%emt 0:00:22] Threatens to win with Nxd5.} Rac8 $4 {[%emt 0:00:28][%mdl 8192]} (29... Nc3 $19 {avoids the disaster.} 30. Rh1 Nxb1) 30. Nxd5 $18 {[%emt 0:00:09]} exd5 {[%emt 0:00:02]} 31. Rg4 {[%emt 0:00:35][%mdl 8192]} (31. R4e2 $18 {is the narrow road to win.} Qa1 32. Bxh7+ $1 {[%mdl 512]} Kxh7 33. Rxa1 Bxa1 34. Re1) 31... g6 $19 {[%emt 0:00:52]} 32. Bf5 {[%emt 0:00:01]} (32. Qxd5 $17 Rcd8 33. Qb3 Qxb3 34. axb3) 32... Rc3 {[%emt 0:00:06]} 33. Qf4 {[%emt 0:00:22]} (33. Bd3 {was the crucial defense.} Ra3 34. Rb1 Qxb1 35. Bxb1 Rxf3 36. Kxf3) 33... Rc4 {[%emt 0:00:11]} 34. Qf3 {[%emt 0:00:16]} Rxg4 {[%emt 0:00:03]} ({But not} 34... Qxa2 $2 35. Bxg6 Rxg4 36. Bb1 $19) 35. Bxg4 {[%emt 0:00:01]} Bg7 {[%emt 0:00:09]} (35... h5 $19 {is more deadly.} 36. Bd7 Kg7 37. Qxd5 Bd4) 36. Qxd5 $17 {[%emt 0:00:04]} Qd4 {[%emt 0:00:09]} 37. Qb3 {[%emt 0:00:05][%mdl 8192]} (37. Bf3 $17) 37... Qxg4 $19 {[%emt 0:00:05]} 38. Qxb6 {[%emt 0:00:02]} Qc4 {[%emt 0:00:06]} 39. Qb7 {[%emt 0:00:13]} Qxa2 {[%emt 0:00:03]} 40. Qd7 {[%emt 0:00:01]} a5 {[%emt 0:00:03]} 41. Re4 {[%emt 0:00:07]} Qb3 {[%emt 0:00:13]} 42. Ra4 {[%emt 0:00:01]} Qb6 {[%emt 0:00:08]} 43. Rf4 {[%emt 0:00:11]} Be5 {[%emt 0:00:35]} 44. Ra4 {[%emt 0:00:06]} Rb8 {[%emt 0:00:09]} (44... Rd8 $142 45. Qg4 Rd2 46. Qf3 {[#]} Rxf2+ $3 {[%mdl 512]} 47. Qxf2 Qc6+ 48. Kh3 Qxa4 49. Kg2 Qe4+ 50. Kh2 Qd4 51. Qf3 a4 52. Kh3 Kg7 53. Qe2 a3 54. Kh2 Qb2 55. Qg2 Qxg2+ 56. Kxg2 a2 57. g4 a1=Q 58. Kf2 Bd4+ 59. Ke2 Qc3 60. Kd1 Qd3+ 61. Kc1 Bc3 62. g5 Qd2+ 63. Kb1 Qb2#) 45. Re4 {[%emt 0:00:03]} Bg7 {[%emt 0:00:08] Strongly threatening ...Rd8.} 46. Kg1 {[%emt 0:00:15]} Qb1+ {[%emt 0:00:02] What a bad dream for White.  Weighted Error Value: White=0.89/Black=0.53} 0-1

[Event "Szansa Chess Open 2022"]
[Site "Warsaw"]
[Date "2022.09.18"]
[Round "7"]
[White "Krasenkova, Elena"]
[Black "Smykalo, Severyn"]
[Result "1-0"]
[ECO "E09"]
[WhiteElo "2124"]
[BlackElo "1840"]
[Annotator "TA"]
[PlyCount "95"]
[EventDate "2022.09.17"]
[EventCountry "POL"]
[SourceTitle "playchess.com"]
[Source "ChessBase"]
[SourceQuality "1"]
[TimeControl "900+10"]

{[%evp 19,95,30,31,22,16,5,20,16,107,27,76,106,158,26,12,2,29,8,47,23,58,59,72,0,0,0,0,0,0,-31,-27,-31,0,0,-22,-12,0,-16,0,-49,-39,-55,-25,-48,-45,-94,-24,-83,-91,-91,-86,-91,-20,-19,39,39,64,60,150,68,75,0,409,405,250,311,244,238,489,462,452,418,29970,29971,29970,29973,29951,12786]} 1. d4 {[%emt 0:00:02]} d5 {[%emt 0:00:01]} 2. Nf3 {[%emt 0:00:01]} c6 {[%emt 0:00:02]} 3. c4 {[%emt 0:00:02]} e6 {[%emt 0:00:01]} 4. Qc2 {[%emt 0:00:02]} Nf6 {[%emt 0:00:08]} 5. g3 {[%emt 0:00:01]} Nbd7 {[%emt 0:00:04]} 6. Bg2 {[%emt 0:00:02]} Be7 {[%emt 0:00:12]} 7. O-O {[%emt 0:00:02]} O-O {[%emt 0:00:02]} 8. Nbd2 {[%emt 0:00:08]} b6 {[%emt 0:00:15]} 9. e4 {[%emt 0:00:08]} Bb7 {[%emt 0:00:07]} 10. e5 {[%emt 0:00:12]} Ne8 11. Rd1 {[%emt 0:00:28] E09: Closed Catalan: Main Line: 7 Qc2 c6 8 Nbd2.} Nc7 {[%emt 0:00:52]} 12. b3 {[%emt 0:00:12]} c5 {[%emt 0:00:31]} 13. Bb2 {[%emt 0:00:35] [#] The position is equal.} dxc4 $146 {[%emt 0:00:35] [#]} (13... a5 $11 {keeps the balance.}) ({Predecessor:} 13... a5 14. Nf1 a4 15. Ne3 axb3 16. axb3 Rxa1 17. Rxa1 Qb8 18. Rd1 dxc4 19. Nxc4 Rd8 20. dxc5 bxc5 {½-½ (33) Aupi Royo,J (2351)-Canamas Soler,J (2293) ICCF email 2016}) 14. bxc4 {[%emt 0:00:42]} (14. Ng5 $1 $16 {[%mdl 512]} Bxg5 15. Bxb7) 14... Qc8 {[%emt 0:03:38]} (14... cxd4 $11 15. Ne4 d3 16. Qxd3 Na6) 15. Ne4 $16 {[%emt 0:00:29][%cal Od4d5]} h6 {[%emt 0:00:37]} (15... cxd4 $142 16. Rxd4 h6) 16. Nd6 {[%emt 0:00:38]} ({Better is} 16. d5 $1 $16 {[%cal Rd5d6]}) 16... Bxd6 $11 {[%emt 0:00:10]} 17. exd6 {[%emt 0:00:01]} Ne8 {[%emt 0:00:01][%cal Bc7e8,Be8f6,Bf6d7][%mdl 32]} 18. dxc5 {[%emt 0:01:07]} bxc5 {[%emt 0:00:14]} 19. Rab1 {[%emt 0:00:59]} Rb8 {[%emt 0:01:08]} 20. Bc3 {[%emt 0:04:08] This bishop pair is nice.} Nef6 {[%emt 0:00:28]} 21. Ne5 {[%emt 0:00:42] White has more active pieces.} (21. Bxf6 $16 Nxf6 22. Ne5 Bxg2 23. Rxb8 (23. Kxg2 Nd7 $16) 23... Qxb8 24. Kxg2) 21... Bxg2 {[%emt 0:00:42]} 22. Kxg2 {[%emt 0:00:02]} Nxe5 {[%emt 0:00:10]} 23. Bxe5 {[%emt 0:00:02][%cal Od6d7]} Qc6+ {[%emt 0:00:01]} 24. f3 {[%emt 0:00:11][%cal Od6d7] d7! is the strong threat.} Nd7 {[%emt 0:00:37]} 25. Bc3 {[%emt 0:00:38]} Rfd8 {[%emt 0:00:27]} 26. Qe4 {[%emt 0:01:26]} Qxe4 {[%emt 0:00:52]} 27. fxe4 {[%emt 0:00:01]} f6 {[%emt 0:00:01] Prevents e5.} 28. Rb5 {[%emt 0:01:04]} a6 {[%emt 0:01:42]} 29. Ra5 {[%emt 0:00:49]} (29. Rxb8 $11 {is superior.} Rxb8 30. e5) 29... Rb6 {[%emt 0:00:09]} 30. Ra3 {[%emt 0:00:02][%cal Oe4e5]} Rc8 {[%emt 0:00:47]} (30... e5 $5 {[%cal Rd7f8]}) 31. Ba5 {[%emt 0:00:40]} Rb2+ {[%emt 0:00:22]} 32. Kg1 {[%emt 0:00:57]} (32. Rd2 $15 {deserves consideration.} Rcb8 33. Rf2) 32... Re2 {[%emt 0:00:59]} (32... Rcb8 $17) 33. Re1 {[%emt 0:01:00]} (33. Rb1 $11 {remains equal.}) 33... Rxe1+ $17 {[%emt 0:00:51]} 34. Bxe1 {[%emt 0:00:01][%mdl 4096] Endgame KRB-KRN} Rc6 {[%emt 0:00:02]} 35. Rd3 {[%emt 0:00:01]} Kf7 {[%emt 0:02:04]} (35... Rb6 $17) 36. Ba5 $1 $11 {[%emt 0:00:01]} g6 {[%emt 0:00:19]} ({Black should try} 36... Rc8 $11) 37. Bc7 $1 $14 {[%emt 0:00:25]} e5 {[%emt 0:00:08]} 38. Rb3 {[%emt 0:00:01] aiming for Rb7.} f5 {[%emt 0:00:34]} (38... a5 $1 $14) 39. Kf2 {[%emt 0:00:15]} (39. Rb7 $16) 39... Ke6 $1 {[%emt 0:00:19] [#]} 40. Ke3 {[%emt 0:00:20]} (40. Rb7 $1 $16) 40... Nf6 $2 {[%emt 0:00:04][%mdl 8192]} (40... a5 $11) 41. exf5+ $18 {[%emt 0:00:46]} gxf5 {[%emt 0:00:16] [#]} 42. Rb8 $1 {[%emt 0:00:01]} Kf7 {[%emt 0:01:19] Prevents Rf8+.} 43. Rh8 {[%emt 0:00:24]} h5 $2 {[%emt 0:00:06]} (43... Kg7 44. Re8 Nxe8) 44. h3 {[%emt 0:00:11] Strongly threatening Rh6.} Kg7 {[%emt 0:00:11] Prevents Rh6.} 45. Rxh5 {[%emt 0:00:33]} Rxd6 {[%emt 0:00:18]} (45... Nxh5 $2 46. d7 Rxc7 47. d8=Q $18) (45... f4+ $18 46. Ke2 Nd7 47. gxf4 exf4) 46. Bxd6 {[%emt 0:00:21] White mates.} Nxh5 {[%emt 0:00:02]} 47. Bxe5+ {[%emt 0:00:02]} Kf7 {[%emt 0:00:08]} 48. g4 {[%emt 0:00:16] Weighted Error Value: White=0.26 (precise) /Black=0.51} 1-0

[Event "Szansa Chess Open 2022"]
[Site "Warsaw"]
[Date "2022.09.18"]
[Round "7"]
[White "Goraj, Barbara"]
[Black "Lapaj, Mateusz"]
[Result "1/2-1/2"]
[ECO "B36"]
[WhiteElo "2121"]
[BlackElo "2216"]
[Annotator "TA"]
[PlyCount "42"]
[EventDate "2022.09.17"]
[EventCountry "POL"]
[SourceTitle "playchess.com"]
[Source "ChessBase"]
[SourceQuality "1"]
[TimeControl "900+10"]

{[%evp 26,42,24,0,43,54,90,78,110,112,93,0,57,0,104,93,111,0,55]} 1. e4 {[%emt 0:00:03]} c5 {[%emt 0:00:01]} 2. Nf3 {[%emt 0:00:02]} Nc6 {[%emt 0:00:02]} 3. d4 {[%emt 0:00:01]} cxd4 {[%emt 0:00:01]} 4. Nxd4 {[%emt 0:00:01]} g6 {[%emt 0:00:20]} 5. c4 {[%emt 0:00:03]} Nf6 {[%emt 0:00:10]} 6. Nc3 {[%emt 0:00:02]} Nxd4 {[%emt 0:00:05]} 7. Qxd4 {[%emt 0:00:02]} d6 {[%emt 0:00:01]} 8. Be3 {[%emt 0:00:07]} Bg7 {[%emt 0:00:03]} 9. Be2 {[%emt 0:00:02]} O-O {[%emt 0:00:02]} 10. Qd2 {[%emt 0:00:08]} Be6 {[%emt 0:00:55]} 11. Rc1 {[%emt 0:01:07]} Qa5 {[%emt 0:00:45]} 12. O-O {[%emt 0:00:28]} Rfc8 {[%emt 0:00:11]} 13. b3 {[%emt 0:00:18]} a6 {[%emt 0:02:04]} 14. f3 {[%emt 0:04:40][%cal Bf2f3,Bf3f4][%mdl 32]} Nd7 {[%emt 0:06:36][%cal Ob7b5] B36: Sicilian: Maroczy Bind: Gurgenidze System.} (14... b5 $5) 15. f4 {[%emt 0:02:52][%cal Of4f5]} (15. Rc2 {feels hotter.} b5 16. Rfc1 bxc4 17. Bxc4 Bxc4 18. Nd5) 15... Nf6 {[%emt 0:00:48][%cal Ob7b5]} 16. Bf3 {[%emt 0:01:16][%cal Of4f5]} Rab8 {[%emt 0:02:24] [#] White is better.} 17. Ba7 $1 {[%emt 0:01:11]} Ra8 {[%emt 0:00:01]} 18. Be3 {[%emt 0:00:45][%cal Of4f5] [#]} Rab8 $146 {[%emt 0:00:01]} ({Predecessor:} 18... h5 19. f5 Bd7 20. fxg6 fxg6 21. e5 Qxe5 22. Bd4 Ne4 23. Bxe4 Qxd4+ 24. Qxd4 Bxd4+ 25. Kh1 Bxc3 26. Rxc3 Rf8 27. Rcc1 Bc6 28. Bxg6 {1-0 (50) Vojdani,S (2018)-Pilvaieh,A (2075) Mashhad 2015}) 19. Ba7 {[%emt 0:00:04]} (19. f5 $14 {should be considered.} gxf5 20. exf5 Bxf5 21. Ba7) 19... Ra8 $16 {[%emt 0:00:02]} 20. Bd4 {[%emt 0:01:56]} Rab8 {[%emt 0:00:01]} 21. Ba7 {[%emt 0:02:22]} (21. e5 $16 dxe5 22. Bxe5) 21... Ra8 {[%emt 0:00:02] Weighted Error Value: White=0.34/Black=0.18 (very precise)} 1/2-1/2